Workbook

Sheet 과제목록
A1: 2014년도 추진 의료제품연구분야 과제설명회-과제 목록(의약품, 화장품•의약외품, 의료기기, 방사선)
A3: 과제번호 | B3: 연구 형태 | C3: 평가방법 | D3: 총괄 | E3: 신규 계속과제 | I3: 단년도 | J3: 과제명(안) | K3: 수행/주관부서 | L3: 연구비 (천원) | M3: 연구기간
E4: 1/5 | F4: 1/4 | G4: 1/3 | H4: 1/2 | M4: (개월) | N4: 당해년도 연구시작일 | O4: 당해년도 연구종료일 (예정)
A5: 세부사업 | J5: 2. 의약품등안전관리 | L5: =L6+#REF!+#REF!+L28 -> 
A6: 세사업 | D6: =D7+D14+D21+D26 -> 17 | E6: 0 | F6: 0 | G6: 1 | H6: 1 | I6: 15 | J6: 1) 의약품 안전관리 연구 | L6: =L7+L14+L21+L26 -> 2944000
A7: 단위과제 | D7: =COUNTA(D8:D13) -> 6 | E7: 0 | F7: 0 | G7: 0 | H7: 0 | I7: 6 | J7: ① 의약품 허가제도 및 심사평가 연구 | L7: =SUM(L8:L13) -> 315000
A8: 14172의약안152 | B8: 조사 | C8: 서면 | D8: ○ | I8: ○ | J8: 약국제제 및 조제실제제 관리 선진화를 위한 연구 | K8: 의약품규격연구과 | L8: 45000 | M8: =DAYS360(O8,N8,FALSE)/30 -> -9.966666667 | N8: 2014-02-01 | O8: 2014-11-30
A9: 14172의약안153 | B9: 조사 | C9: 서면 | D9: ○ | I9: ○ | J9: 임상시험대상자 권익보호를 위한 대상자보호프로그램 가이드라인 마련 | K9: 의약품규격연구과 | L9: 50000 | M9: -9.966666667 | N9: 2014-02-01 | O9: 2014-11-30
A10: 14172의약안154 | B10: 조사 | C10: 서면 | D10: ○ | I10: ○ | J10: 국제조화된 임상시험용 의약품 GMP 기준 해설서 마련 | K10: 의약품규격연구과 | L10: 90000 | M10: -9.966666667 | N10: 2014-02-01 | O10: 2014-11-30
A11: 14172의약안155 | B11: 조사 | C11: 서면 | D11: ○ | I11: ○ | J11: 의약품분야 FTA 대응평가 및 식약처 지원방안 연구 | K11: 의약품규격연구과 | L11: 50000 | M11: -9.966666667 | N11: 2014-02-01 | O11: 2014-11-30
A12: 14172의약안156 | B12: 조사 | C12: 서면 | D12: ○ | I12: ○ | J12: 신약 등의 재심사 제도 개선방안 연구 | K12: 의약품규격연구과 | L12: 50000 | M12: -9.966666667 | N12: 2014-02-01 | O12: 2014-11-30
A13: 14172의약안157 | B13: 조사 | C13: 서면 | D13: ○ | I13: ○ | J13: 성분별 생물학적동등성 시험에 따른 권고사항 마련 연구 | K13: 의약품규격연구과 | L13: 30000 | M13: -9.966666667 | N13: 2014-02-01 | O13: 2014-11-30
A14: 단위과제 | D14: =COUNTA(D15:D20) -> 6 | E14: 0 | F14: 0 | G14: 0 | H14: 0 | I14: 6 | J14: ② 의약품 규격 및 품질평가 연구 | L14: =SUM(L15:L20) -> 1164000
A15: 14172의약안168 | B15: 시험 | C15: 서면 | D15: ○ | I15: ○ | J15: 대한약전외의약품기준 현대화 연구-소염진통해열용 의약품 | K15: 의약품규격연구과 | L15: 80000 | M15: =DAYS360(O15,N15,FALSE)/30 -> -9.966666667 | N15: 2014-02-01 | O15: 2014-11-30
A16: 14172의약안169 | B16: 시험 | C16: 발표 | D16: ○ | I16: ○ | J16: 의약품 표준품 확보 및 품질검증 연구 (II) | K16: 의약품규격연구과 | L16: 182000 | M16: -9.966666667 | N16: 2014-02-01 | O16: 2014-11-30
A17: 14172의약안170 | B17: 시험 | C17: 발표 | D17: ○ | I17: ○ | J17: 마약류 표준품 확보 및 품질검증 연구 (III) | K17: 의약품규격연구과 | L17: 182000 | M17: -9.966666667 | N17: 2014-02-01 | O17: 2014-11-30
A18: 14172의약안171 | B18: 시험 | C18: 발표 | D18: ○ | I18: ○ | J18: 의약품 중 비의도적 유해물질 분석 및 위해성 평가 - 프탈레이트류 | K18: 의약품규격연구과 | L18: 240000 | M18: -9.966666667 | N18: 2014-02-01 | O18: 2014-11-30
A19: 14172의약안172 | B19: 시험 | C19: 발표 | D19: ○ | I19: ○ | J19: 의약품 중 비의도적 유해물질 분석 및 위해성 평가 - 포름알데히드 | K19: 의약품규격연구과 | L19: 240000 | M19: -9.966666667 | N19: 2014-02-01 | O19: 2014-11-30
A20: 14172의약안173 | B20: 시험 | C20: 발표 | D20: ○ | I20: ○ | J20: 의약품 중 비의도적 유해물질 분석 및 위해성 평가 - 다환방향족탄화수소(PAHs) 및 중장기기획연구 | K20: 의약품규격연구과 | L20: 240000 | M20: -9.966666667 | N20: 2014-02-01 | O20: 2014-11-30
A21: 단위과제 | D21: =COUNTA(D22:D25) -> 4 | E21: 0 | F21: 0 | G21: 0 | H21: 1 | I21: 3 | J21: ③ 의약품 안전사용 및 적정사용 연구 | L21: =SUM(L22:L25) -> 330000
A22: 14172의약안174 | B22: 조사 | C22: 서면 | D22: ○ | H22: ○ | J22: 의약품 오남용 및 DUR금기 의약품 등의 후향적 적정사용평가 연구 | K22: 의약품규격연구과 | L22: 90000 | M22: =DAYS360(O22,N22,FALSE)/30 -> -9.966666667 | N22: 2014-02-01 | O22: 2014-11-30
A23: 14172의약안175 | B23: 조사 | C23: 서면 | D23: ○ | I23: ○ | J23: 의약품적정사용(DUR) 정보 중장기 개발전략 기획 연구 | K23: 의약품규격연구과 | L23: 50000 | M23: =DAYS360(O23,N23,FALSE)/30 -> -9.966666667 | N23: 2014-02-01 | O23: 2014-11-30
A24: 14172의약안176 | B24: 조사 | C24: 발표 | D24: ○ | I24: ○ | J24: 의약품 안전사용 교육을 위한 계층별 맞춤형 교재 개발 -임부, 희귀질환자 | K24: 의약품규격연구과 | L24: 100000 | M24: =DAYS360(O24,N24,FALSE)/30 -> -9.966666667 | N24: 2014-02-01 | O24: 2014-11-30
A25: 14172의약안177 | B25: 조사 | C25: 서면 | D25: ○ | I25: ○ | J25: 의약품 복약정보에 대한 표준 모델 개발 연구 | K25: 의약품규격연구과 | L25: 90000 | M25: =DAYS360(O25,N25,FALSE)/30 -> -9.966666667 | N25: 2014-02-01 | O25: 2014-11-30
A26: 단위과제 | D26: =COUNTA(D27:D27) -> 1 | E26: 0 | F26: 0 | G26: 1 | H26: 0 | I26: 0 | J26: ④ 허가외사용의약품 안전성유효성 평가 연구 | L26: =SUM(L27:L27) -> 1135000
A27: 14172의약안178 | B27: 시험 | C27: 발표 | D27: ○ | G27: ○ | J27: 허가외사용의약품의 안전성‧유효성 검증연구 (II) | K27: 의약품규격연구과 | L27: 1135000 | M27: =DAYS360(O27,N27,FALSE)/30 -> -9.966666667 | N27: 2014-02-01 | O27: 2014-11-30
A28: 세사업 | D28: =D29+D31+D34 -> 4 | E28: 0 | F28: 0 | G28: 0 | H28: 0 | I28: 4 | J28: 4) 화장품·의약외품 안전관리 연구 | L28: =L29+L31+L34 -> 329000
A29: 단위과제 | D29: =COUNTA(D30:D30) -> 1 | E29: 0 | F29: 0 | G29: 0 | H29: 0 | I29: 1 | J29: ① 화장품·의약외품 안전관리 기반 연구 | L29: =SUM(L30:L30) -> 139000
A30: 14172화장품303 | B30: 시험 | C30: 발표 | D30: ○ | I30: ○ | J30: 의약외품의 첨가제에 대한 안전성 연구(1) | K30: 화장품연구팀 | L30: 139000 | M30: =DAYS360(O30,N30,FALSE)/30 -> -9.966666667 | N30: 2014-02-01 | O30: 2014-11-30
A31: 단위과제 | D31: =COUNTA(D32:D33) -> 2 | E31: 0 | F31: 0 | G31: 0 | H31: 0 | I31: 2 | J31: ② 화장품·의약외품 평가기술 개발 연구 | L31: =SUM(L32:L33) -> 150000
A32: 14172화장품306 | B32: 시험 | C32: 서면 | D32: ○ | I32: ○ | J32: 의약외품 표준품 규격 확보 및 제조 연구 | K32: 화장품연구팀 | L32: 75000 | M32: =DAYS360(O32,N32,FALSE)/30 -> -9.966666667 | N32: 2014-02-01 | O32: 2014-11-30
A33: 14172화장품307 | B33: 시험 | C33: 서면 | D33: ○ | I33: ○ | J33: 의약외품 효능 평가법 개발 연구-치아미백제 | K33: 화장품연구팀 | L33: 75000 | M33: =DAYS360(O33,N33,FALSE)/30 -> -9.966666667 | N33: 2014-02-01 | O33: 2014-11-30
A34: 단위과제 | D34: =COUNTA(D35:D35) -> 1 | E34: 0 | F34: 0 | G34: 0 | H34: 0 | I34: 1 | J34: ③ 화장품·의약외품 안전관리 제도 연구 | L34: =SUM(L35:L35) -> 40000
A35: 14172화장품309 | B35: 조사 | C35: 서면 | D35: ○ | I35: ○ | J35: 화장품의 효율적인 기재·표시 방안 연구 | K35: 화장품연구팀 | L35: 40000 | M35: =DAYS360(O35,N35,FALSE)/30 -> -9.966666667 | N35: 2014-02-01 | O35: 2014-11-30
A36: 세부사업 | D36: =D37+D41+D54+D66 -> 23 | E36: 0 | F36: 0 | G36: 0 | H36: 0 | I36: 23 | J36: 3. 의료기기 등 안전관리 | L36: =L37+L41+L54+L66 -> 3378000
A37: 세사업 | D37: =D38 -> 2 | E37: 0 | F37: 0 | G37: 0 | H37: 0 | I37: 2 | J37: 1) 의료기기 평가기술 기반 구축 | L37: =L38 -> 152000
A38: 단위과제 | D38: =COUNTA(D39:D40) -> 2 | E38: 0 | F38: 0 | G38: 0 | H38: 0 | I38: 2 | J38: ① 다빈도 의료기기 기준규격 및 평가기술 개발 | L38: =SUM(L39:L40) -> 152000
A39: 14172의료평334 | B39: 시험 | C39: 서면 | D39: ○ | I39: ○ | J39: 치과재료의 생물학적 안전에 관한 시험방법 가이드라인 마련 연구 | K39: 의료기기연구과 | L39: 80000 | M39: =DAYS360(O39,N39,FALSE)/30 -> -9.966666667 | N39: 2014-02-01 | O39: 2014-11-30
A40: 14172의료평335 | B40: 시험 | C40: 서면 | D40: ○ | I40: ○ | J40: 의치착색재 및 기타근관충전용재료의 안전성 및 성능 평가 가이드라인 개발 연구 | K40: 의료기기연구과 | L40: 72000 | M40: =DAYS360(O40,N40,FALSE)/30 -> -9.966666667 | N40: 2014-02-01 | O40: 2014-11-30
A41: 세사업 | D41: =D42+D44+D51 -> 9 | E41: 0 | F41: 0 | G41: 0 | H41: 0 | I41: 9 | J41: 2) 의료기기 전주기 안전관리 연구 | L41: =L42+L44+L51 -> 804000
A42: 단위과제 | D42: =COUNTA(D43:D43) -> 1 | E42: 0 | F42: 0 | G42: 0 | H42: 0 | I42: 1 | J42: ① 안전성기반 의료기기산업 중장기 전략 연구 | L42: =SUM(L43:L43) -> 76000
A43: 14172의료안371 | B43: 조사 | C43: 서면 | D43: ○ | I43: ○ | J43: 첨단의료기기 안전관리 및 산업발전을 위한 중장기 발전전략 연구 | K43: 의료기기연구과 | L43: 76000 | M43: =DAYS360(O43,N43,FALSE)/30 -> -9.966666667 | N43: 2014-02-01 | O43: 2014-11-30
A44: 단위과제 | D44: =COUNTA(D45:D50) -> 6 | E44: 0 | F44: 0 | G44: 0 | H44: 0 | I44: 6 | J44: ② 의료기기 전주기(원재료, 설계, 안전성, 성능, 임상시험 등) 표준모델 개발 연구 | L44: =SUM(L45:L50) -> 576000
A45: 14172의료안374 | B45: 조사 | C45: 서면 | D45: ○ | I45: ○ | J45: 시력보정용 안경테 및 색안경(선글라스) 안전관리 선진화 방안에 대한 연구 | K45: 의료기기연구과 | L45: 50000 | M45: =DAYS360(O45,N45,FALSE)/30 -> -9.966666667 | N45: 2014-02-01 | O45: 2014-11-30
A46: 14172의료안375 | B46: 조사 | C46: 발표 | D46: ○ | I46: ○ | J46: 국제표준화 기술문서 작성을 위한 품목별 가이드라인 개발 연구 | K46: 의료기기연구과 | L46: 150000 | M46: -9.966666667 | N46: 2014-02-01 | O46: 2014-11-30
A47: 14172의료안376 | B47: 조사 | C47: 발표 | D47: ○ | I47: ○ | J47: 의료기기 중 색소 등 첨가제 현황 및 관리 방안 마련 | K47: 의료기기연구과 | L47: 130000 | M47: -9.966666667 | N47: 2014-02-01 | O47: 2014-11-30
A48: 14172의료안377 | B48: 조사 | C48: 서면 | D48: ○ | I48: ○ | J48: 알기쉬운 의료기기 용어 개발에 관한 연구 | K48: 의료기기연구과 | L48: 76000 | M48: -9.966666667 | N48: 2014-02-01 | O48: 2014-11-30
A49: 14172의료안378 | B49: 조사 | C49: 서면 | D49: ○ | I49: ○ | J49: 창상피복재의 정의 및 분류방법(원재료, 성능 등) 체계 확립을 위한 연구 | K49: 의료기기연구과 | L49: 60000 | M49: -9.966666667 | N49: 2014-02-01 | O49: 2014-11-30
A50: 14172의료안379 | B50: 시험 | C50: 발표 | D50: ○ | I50: ○ | J50: 콘택트렌즈의 안전성에 대한 기준규격 개정(안) 마련을 위한 연구 | K50: 의료기기연구과 | L50: 110000 | M50: -9.966666667 | N50: 2014-02-01 | O50: 2014-11-30
A51: 단위과제 | D51: =COUNTA(D52:D53) -> 2 | E51: 0 | F51: 0 | G51: 0 | H51: 0 | I51: 2 | J51: ③ 체외진단분석기용 시약 허가심사 지원 연구 | L51: =SUM(L52:L53) -> 152000
A52: 14172의료안380 | B52: 시험 | C52: 발표 | D52: ○ | I52: ○ | J52: 체외진단분석기용 시약 표준품 품질관리 및 관리방안 연구 | K52: 의료기기연구과 | L52: 102000 | M52: =DAYS360(O52,N52,FALSE)/30 -> -9.966666667 | N52: 2014-02-01 | O52: 2014-11-30
A53: 14172의료안381 | B53: 조사 | C53: 서면 | D53: ○ | I53: ○ | J53: 동반진단(Companion diagnostics) 체외진단시약 허가심사 가이드라인 개발 | K53: 의료기기연구과 | L53: 50000 | M53: =DAYS360(O53,N53,FALSE)/30 -> -9.966666667 | N53: 2014-02-01 | O53: 2014-11-30
A54: 세사업 | D54: =D55+D62+D64 -> 8 | E54: 0 | F54: 0 | G54: 0 | H54: 0 | I54: 8 | J54: 3) 첨단‧융합 의료기기 허가 지원 연구 | L54: =L55+L62+L64 -> 1814000
A55: 단위과제 | D55: =COUNTA(D56:D61) -> 6 | E55: 0 | F55: 0 | G55: 0 | H55: 0 | I55: 6 | J55: ① 첨단․융합 의료기기 평가기술 개발 | L55: =SUM(L56:L61) -> 532000
A56: 14172융합의401 | B56: 시험 | C56: 발표 | D56: ○ | I56: ○ | J56: 전자파 이용 유방암진단장치의 안전성 및 성능 평가기술 개발에 관한 연구 | K56: 의료기기연구과 | L56: 100000 | M56: =DAYS360(O56,N56,FALSE)/30 -> -9.966666667 | N56: 2014-02-01 | O56: 2014-11-30
A57: 14172융합의402 | B57: 시험 | C57: 서면 | D57: ○ | I57: ○ | J57: IEC 60601-1 3rd. 기반의 레이저를 이용한 의료기기의 안전성 평가 가이드라인 개발 연구 | K57: 의료기기연구과 | L57: 90000 | M57: -9.966666667 | N57: 2014-02-01 | O57: 2014-11-30
A58: 14172융합의403 | B58: 조사 | C58: 서면 | D58: ○ | I58: ○ | J58: 복강경 수술 로봇 평가기술 개발에 관한 연구 | K58: 의료기기연구과 | L58: 76000 | M58: -9.966666667 | N58: 2014-02-01 | O58: 2014-11-30
A59: 14172융합의404 | B59: 조사 | C59: 서면 | D59: ○ | I59: ○ | J59: 의료용 중입자가속기 안전성 및 성능 평가기술 개발에 관한 연구 | K59: 의료기기연구과 | L59: 76000 | M59: -9.966666667 | N59: 2014-02-01 | O59: 2014-11-30
A60: 14172융합의405 | B60: 시험 | C60: 서면 | D60: ○ | I60: ○ | J60: 인공신장기용혈액회로 등 2개 품목의 평가 가이드라인 개발 연구 | K60: 의료기기연구과 | L60: 80000 | M60: -9.966666667 | N60: 2014-02-01 | O60: 2014-11-30
A61: 14172융합의406 | B61: 시험 | C61: 발표 | D61: ○ | I61: ○ | J61: 치과주조용귀금속합금 등 3개 품목의 화학적 성분 평가 시험방법 가이드라인 개발 연구 | K61: 의료기기연구과 | L61: 110000 | M61: -9.966666667 | N61: 2014-02-01 | O61: 2014-11-30
A62: 단위과제 | D62: =COUNTA(D63:D63) -> 1 | E62: 0 | F62: 0 | G62: 0 | H62: 0 | I62: 1 | J62: ② 첨단․융합의료기기 임상시험 가이드라인 개발 | L62: =SUM(L63:L63) -> 750000
A63: 14172융합의407 | B63: 조사 | C63: 발표 | D63: ○ | I63: ○ | J63: 임상시험 의무화 대상 의료기기 등 75개 품목에 대한 임상시험 계획서 작성 가이드라인 개발 연구 | K63: 의료기기연구과 | L63: 750000 | M63: =DAYS360(O63,N63,FALSE)/30 -> -9.966666667 | N63: 2014-02-01 | O63: 2014-11-30
A64: 단위과제 | D64: =COUNTA(D65:D65) -> 1 | E64: 0 | F64: 0 | G64: 0 | H64: 0 | I64: 1 | J64: ③ 국산화 핵심 의료기기 허가지원 연구 | L64: =SUM(L65:L65) -> 532000
A65: 14172융합의408 | B65: 조사 | C65: 발표 | D65: ○ | I65: ○ | J65: 국산화 핵심 의료기기 품목별 평가 가이드라인 개발 연구 | K65: 의료기기연구과 | L65: 532000 | M65: =DAYS360(O65,N65,FALSE)/30 -> -9.966666667 | N65: 2014-02-01 | O65: 2014-11-30
A66: 세사업 | D66: =D67+D70 -> 4 | E66: 0 | F66: 0 | G66: 0 | H66: 0 | I66: 4 | J66: 4) 방사선 안전관리 연구 | L66: =L67+L70 -> 608000
A67: 단위과제 | D67: =COUNTA(D68:D69) -> 2 | E67: 0 | F67: 0 | G67: 0 | H67: 0 | I67: 2 | J67: ② 방사선 안전관리 기반 연구 | L67: =SUM(L68:L69) -> 450000
A68: 14172방사선427 | B68: 시험 | C68: 발표 | D68: ○ | I68: ○ | J68: 치과분야 환자선량 이력관리 기반연구 | K68: 방사선안전과 | L68: 380000 | M68: =DAYS360(O68,N68,FALSE)/30 -> -9.966666667 | N68: 2014-02-01 | O68: 2014-11-30
A69: 14172방사선428 | B69: 시험 | C69: 발표 | D69: ○ | I69: ○ | J69: 의료기기와 전자기기 간 상호작용에 관한 연구 | K69: 방사선안전과 | L69: 70000 | M69: =DAYS360(O69,N69,FALSE)/30 -> -9.966666667 | N69: 2014-02-01 | O69: 2014-11-30
A70: 단위과제 | D70: =COUNTA(D71:D72) -> 2 | E70: 0 | F70: 0 | G70: 0 | H70: 0 | I70: 2 | J70: ③ 방사선 인체위해 평가 기반 연구 | L70: =SUM(L71:L72) -> 158000
A71: 14172방사선431 | B71: 시험 | C71: 발표 | D71: ○ | I71: ○ | J71: 비전리 방사선(전자파) 생체 영향 연구 | K71: 방사선안전과 | L71: 78000 | M71: =DAYS360(O71,N71,FALSE)/30 -> -9.966666667 | N71: 2014-02-01 | O71: 2014-11-30
A72: 14172방사선432 | B72: 시험 | C72: 발표 | D72: ○ | I72: ○ | J72: CT 촬영에 대한 방사선방어 약제로서의 항산화제 효용성 연구 | K72: 방사선안전과 | L72: 80000 | M72: =DAYS360(O72,N72,FALSE)/30 -> -9.966666667 | N72: 2014-02-01 | O72: 2014-11-30
